bitfinex-derivatives/quotes_ETHF0:USTF0_20241129
["timestamp","ask_amount","ask_price","bid_price","bid_amount"]
[1732918382889,0.69573,3588.9,3588.7,0.27844]
[1732918383199,0.40937647,3588.9,3588.6,1.02232528]
[1732918383396,0.27844,3588.7,3588.6,1.02232528]
[1732918384198,0.40937647,3588.9,3588.6,1.02232528]
[1732918384501,0.27844,3588.8,3588.7,1.02232528]
[1732918385207,0.27844,3588.7,3588.5,0.4333]
[1732918385499,0.27844,3588.7,3588.6,1.02232528]
[1732918386604,0.40937647,3588.9,3588.6,1.02232528]
[1732918386801,0.27844,3588.8,3588.7,1.02232528]
[1732918388500,0.40937647,3588.9,3588.5,1.45562528]
[1732918388702,0.27845,3588.6,3588.5,1.45562528]
[1732918389400,0.27844,3588.7,3588.5,1.45562528]
[1732918390598,0.27844,3588.7,3588.5,4.66342528]
[1732918391695,0.68780647,3588.9,3588.5,4.66342528]
[1732918391899,3.2078,3589.3,3588.8,1.02232528]
[1732918392301,0.27842,3588.9,3588.8,1.02232528]
[1732918392898,0.27842,3589.0,3588.8,1.02232528]
[1732918393191,3.2078,3589.3,3588.8,1.02232528]
[1732918393395,3.48619,3589.3,3589.2,1.02232528]
[1732918393600,3.2078,3589.3,3589.2,1.02232528]
[1732918394503,3.48619,3589.3,3589.2,1.02232528]
[1732918395995,0.27835,3589.9,3589.2,2.04465056]
[1732918396198,3.2078,3590.0,3589.4,1.02232528]
[1732918396501,2.32642528,3590.2,3589.3,0.4121]
[1732918396502,3.2078,3589.6,3589.3,0.4121]
[1732918396697,0.27838,3589.4,3589.3,0.4121]
[1732918396897,0.27838,3589.4,3589.1,1.74032528]
[1732918396898,1.3041,3589.5,3589.0,0.4121]
[1732918397101,1.3041,3589.5,3589.0,1.43442528]
[1732918397102,0.27841,3589.1,3589.0,1.43442528]
[1732918398200,0.27839,3589.3,3589.0,1.43442528]
[1732918398404,1.3041,3589.5,3589.2,1.02232528]
[1732918398901,0.27839,3589.3,3589.2,1.02232528]
[1732918402398,0.2784,3589.2,3589.0,2.32202528]
[1732918402592,1.3041,3589.5,3589.0,2.32202528]
[1732918402794,0.27841,3589.1,3589.0,2.32202528]
[1732918403298,0.27841,3589.1,3589.0,0.8598]
[1732918403501,0.4481,3589.5,3589.0,1.88212528]
[1732918403800,0.27838,3589.5,3589.3,1.02232528]
[1732918404006,0.27838,3589.4,3589.3,1.02232528]
[1732918404307,0.27838,3589.5,3589.3,1.02232528]
[1732918404501,0.4489,3589.9,3589.3,1.02232528]
[1732918404707,0.27837,3589.7,3589.5,1.02232528]
[1732918404906,0.27837,3589.7,3589.6,0.8732]
[1732918405705,0.27833,3590.1,3589.6,1.5912]
[1732918405909,0.27833,3590.1,3590.0,1.02232528]
[1732918406212,0.27833,3590.1,3589.6,1.5912]
[1732918406213,0.27834,3590.0,3589.8,1.02232528]
[1732918406705,0.27834,3590.1,3589.8,1.02232528]
[1732918406910,0.27834,3590.1,3590.0,1.02232528]
[1732918409600,0.27833,3590.1,3589.8,1.02232528]
[1732918410304,3.48612,3590.2,3589.8,1.02232528]
[1732918410706,0.27833,3590.1,3589.8,1.02232528]
[1732918411305,3.48613,3590.2,3589.8,1.02232528]
[1732918411713,3.2078,3590.2,3589.8,1.02232528]
[1732918411912,0.27833,3590.1,3589.8,1.02232528]
[1732918412112,3.2078,3590.2,3590.0,1.02232528]
[1732918412616,0.27835,3589.8,3589.6,1.5912]
[1732918412804,0.27835,3589.8,3589.6,2.61352528]
[1732918413212,1.2778,3590.1,3589.6,2.61352528]
[1732918413515,0.27836,3589.7,3589.6,0.8732]
[1732918413711,0.27836,3589.7,3589.6,1.89552528]
[1732918414113,0.27836,3589.7,3589.6,1.46652528]
[1732918416210,0.27836,3589.8,3589.6,1.46652528]
[1732918416407,0.27836,3589.7,3589.6,1.46652528]
[1732918416610,0.27836,3589.8,3589.6,1.46652528]
[1732918417110,1.2778,3590.1,3589.6,1.46652528]
[1732918417311,0.27835,3589.8,3589.6,1.46652528]
[1732918417508,0.27835,3589.9,3589.6,1.46652528]
[1732918418712,0.27835,3589.8,3589.6,1.46652528]
[1732918420819,0.27836,3589.7,3589.6,1.46652528]
[1732918421519,0.27836,3589.7,3589.6,1.91242528]
[1732918422816,0.27836,3589.8,3589.6,1.91242528]
[1732918425312,3.2078,3589.7,3589.6,1.46822528]
[1732918425527,0.27836,3589.7,3589.6,0.4459]
[1732918425817,0.27836,3589.8,3589.6,0.4459]
[1732918426317,4.4856,3590.1,3589.3,3.2078]
[1732918426520,0.27839,3589.4,3589.3,3.2078]
[1732918428022,3.2078,3589.4,3589.1,0.4398]
[1732918428219,0.2784,3589.2,3589.1,0.4398]
[1732918428814,1.2581,3589.3,3588.8,0.8383]
[1732918429015,0.27842,3589.1,3588.8,1.2502]
[1732918429925,1.2581,3589.3,3588.8,0.8228]
[1732918430125,0.27842,3589.0,3588.8,0.8228]
[1732918431617,1.2581,3589.3,3588.8,0.8228]
[1732918431820,0.27842,3589.0,3588.8,0.8228]
[1732918433023,1.02232528,3589.0,3588.4,3.2078]
[1732918433325,1.02232528,3589.0,3588.5,0.4175]
[1732918433628,0.27845,3588.6,3588.5,0.4175]
[1732918436122,3.2078,3588.9,3588.5,0.4175]
[1732918436825,0.27844,3588.8,3588.5,0.4175]
[1732918437224,0.27844,3588.7,3588.6,1.02232528]
[1732918437624,3.2078,3588.9,3588.6,1.02232528]
[1732918437830,3.48623,3588.9,3588.7,0.8987]
[1732918438328,3.2078,3588.9,3588.7,41.6987]
[1732918438827,3.48622,3588.9,3588.7,0.8987]
[1732918439219,0.27843,3588.8,3588.7,0.8987]
[1732918439425,3.48623,3588.9,3588.7,0.8987]
[1732918440125,3.2078,3588.9,3588.7,0.8987]
[1732918440324,0.27843,3588.8,3588.7,0.8987]
[1732918440525,3.2078,3588.9,3588.5,0.4175]
[1732918440734,0.27845,3588.6,3588.5,0.4175]
[1732918440924,0.27844,3588.7,3588.5,0.4175]
[1732918441121,0.27845,3588.6,3588.5,0.4175]
[1732918441532,0.70954,3588.7,3588.5,0.4175]
[1732918442829,0.27845,3588.6,3588.5,0.4175]
[1732918443026,0.70175,3588.6,3588.5,0.4175]
[1732918445323,0.4233,3588.6,3588.3,0.718]
[1732918445524,0.27846,3588.4,3588.3,0.718]
[1732918446323,0.4233,3588.6,3588.2,1.3213]
[1732918446528,0.27847,3588.3,3588.2,1.3213]
[1732918447232,1.02232528,3588.4,3588.0,3.2078]
[1732918447439,0.2785,3588.0,3587.8,1.02232528]
[1732918447635,0.2785,3588.0,3587.9,0.4362]
[1732918448238,1.30082528,3588.0,3587.9,0.4362]
[1732918448428,0.27852,3587.7,3587.5,3.2078]
[1732918448625,0.27852,3587.7,3587.6,0.4362]
[1732918449125,1.02232528,3587.8,3587.5,3.2078]
[1732918449326,0.27853,3587.5,3587.4,0.447]
[1732918450331,0.27854,3587.4,3587.3,0.4362]
[1732918450526,0.70164,3587.4,3587.3,0.4362]
[1732918451133,1.44542528,3587.4,3586.9,3.6199]
[1732918451339,0.27857,3587.1,3586.9,4.0377]
[1732918451538,0.27856,3587.2,3586.9,4.0377]
[1732918452039,0.27856,3587.2,3587.0,1.02232528]
[1732918452439,0.27856,3587.1,3587.0,1.02232528]
[1732918453539,0.27856,3587.1,3586.9,4.0377]
[1732918453743,0.4459,3587.3,3586.9,4.0377]
[1732918454247,0.27857,3587.1,3586.9,4.0377]
[1732918454450,0.27856,3587.2,3586.9,4.0377]
[1732918454745,0.27857,3587.0,3586.9,4.0377]
[1732918454942,1.02232528,3587.2,3586.5,3.2078]
[1732918455149,0.2786,3586.7,3586.6,0.4493]
[1732918455839,0.27859,3586.8,3586.6,0.4493]
[1732918456033,0.27859,3586.7,3586.6,0.4493]
[1732918456940,1.02232528,3587.2,3586.6,0.4493]
[1732918457137,0.27859,3586.7,3586.6,0.4493]
[1732918458534,1.02232528,3587.2,3586.6,0.4493]
[1732918458740,0.27859,3586.8,3586.6,0.4493]
[1732918459148,0.27858,3586.9,3586.6,0.4493]
[1732918459741,0.27859,3586.7,3586.6,0.4493]
[1732918459942,1.11946,3587.4,3586.6,0.4493]
[1732918459943,3.2078,3587.7,3586.7,0.69649]
[1732918460140,0.27855,3587.4,3587.3,1.02232528]
[1732918460338,0.27855,3587.4,3587.1,0.27856]
[1732918460339,0.27855,3587.4,3587.2,1.14125]
[1732918460849,0.27855,3587.3,3587.2,0.8627]
[1732918461347,3.2078,3587.7,3587.2,1.88502528]
[1732918461537,3.2078,3587.7,3587.4,1.02232528]
[1732918461740,1.2446,3587.9,3587.4,1.02232528]
[1732918462046,0.27852,3587.6,3587.4,1.30085528]
[1732918462240,0.27852,3587.6,3587.4,0.27853]
[1732918462441,0.27852,3587.6,3587.2,0.8627]
[1732918462442,4.4524,3587.9,3587.2,0.8627]
[1732918462639,0.27852,3587.7,3587.5,0.27853]
[1732918462840,0.27852,3587.7,3587.2,0.8627]
[1732918462841,1.2446,3587.9,3587.2,0.8627]
[1732918463045,1.2446,3587.9,3587.3,0.436]
[1732918463253,0.27852,3587.7,3587.5,0.27853]
[1732918463546,0.27851,3587.8,3587.6,0.27852]
[1732918463744,0.8319,3587.9,3587.5,3.2078]
[1732918463938,0.8319,3587.9,3587.7,0.27851]
[1732918464144,4.35279,3588.3,3587.8,0.27851]
[1732918464145,0.2785,3588.0,3587.8,0.27851]
[1732918464345,0.27848,3588.2,3587.8,0.27851]
[1732918464647,0.2785,3588.0,3587.9,0.436]
[1732918464948,0.2785,3588.0,3587.9,0.7145]
[1732918465146,0.27849,3588.1,3588.0,0.27849]
[1732918465348,0.27849,3588.1,3588.0,0.4267]
[1732918467843,0.8887,3588.3,3588.0,0.4267]
[1732918468044,0.27848,3588.2,3588.0,0.4267]
[1732918468238,0.27847,3588.3,3588.1,0.27848]
[1732918468437,0.97454,3588.7,3588.0,1.13099]
[1732918468638,0.27846,3588.4,3588.2,0.27848]
[1732918468848,5.15798,3588.8,3588.1,0.27848]
[1732918468849,0.27847,3588.3,3588.1,0.27848]
[1732918469038,0.97454,3588.7,3588.0,1.13099]
[1732918469239,6.58274066,3588.8,3588.0,0.8525]
[1732918469443,0.69612,3588.6,3588.0,0.8525]
[1732918469644,0.27849,3588.1,3588.0,0.8525]
[1732918470050,0.27848,3588.2,3588.0,1.13099]
[1732918471145,0.69612,3588.6,3588.0,1.13099]
[1732918471146,0.27849,3588.1,3588.0,1.13099]
[1732918471346,0.27848,3588.2,3588.0,1.13099]
[1732918474756,0.27848,3588.2,3588.0,0.8525]
[1732918477653,0.69612,3588.6,3588.0,1.13099]
[1732918477853,0.27849,3588.1,3588.0,1.13099]
[1732918478355,0.27847,3588.3,3588.1,0.27848]
[1732918478559,3.90392,3588.6,3588.0,0.8525]
[1732918478752,3.90392,3588.6,3588.0,1.13099]
[1732918478949,0.27848,3588.2,3588.1,0.27849]
[1732918479646,0.27848,3588.2,3588.0,1.13099]
[1732918479846,0.27846,3588.4,3588.2,0.27847]
[1732918480046,1.95019,3588.8,3588.0,0.8525]
[1732918480047,0.27847,3588.3,3588.0,0.8525]
[1732918480254,0.27847,3588.3,3588.1,0.27848]
[1732918480555,0.27848,3588.3,3588.1,0.27848]
[1732918480746,0.27848,3588.3,3588.1,3.48628]
[1732918481349,0.27848,3588.2,3588.1,3.48628]
[1732918481546,1.95019,3588.8,3588.4,0.27846]
[1732918481547,0.27845,3588.6,3588.4,0.27846]
[1732918481752,0.27845,3588.6,3588.5,0.439]
[1732918482349,0.27845,3588.6,3588.5,0.71745]
[1732918482549,0.27845,3588.6,3588.5,0.439]
[1732918483355,0.27844,3588.7,3588.5,0.71745]
[1732918483561,0.27844,3588.7,3588.6,0.4264]
[1732918483751,0.8449,3588.8,3588.7,0.27844]
[1732918483752,1.12333,3588.8,3588.7,0.27844]
[1732918483953,1.12334,3588.8,3588.6,1.12034]
[1732918484658,0.27844,3588.8,3588.7,0.27844]
[1732918484859,0.27844,3588.8,3588.6,1.12034]
[1732918485159,0.4159,3588.9,3588.6,0.8419]
[1732918485353,0.27844,3588.8,3588.6,1.12034]
[1732918486254,0.27845,3588.6,3588.5,3.6468]
[1732918486453,1.11197,3588.9,3588.3,1.00046]
[1732918486454,0.27846,3588.5,3588.3,1.00046]
[1732918486855,4.31977,3588.9,3588.3,1.00046]
[1732918487061,0.27846,3588.5,3588.3,0.722]
[1732918487260,0.27846,3588.5,3588.4,0.27846]
[1732918489758,0.27846,3588.5,3588.3,0.27846]
[1732918490254,0.27846,3588.5,3588.4,0.27846]
[1732918490962,3.6237,3588.9,3588.2,1.02482147]
[1732918491158,0.4159,3588.9,3588.8,1.30325147]
[1732918491455,0.69432,3588.9,3588.8,1.02482147]
[1732918491857,0.69432,3588.9,3588.8,1.44572147]
[1732918493762,0.4159,3588.9,3588.8,1.72415147]
[1732918494157,0.69432,3588.9,3588.8,1.72415147]
[1732918494362,0.4159,3588.9,3588.8,1.72415147]
[1732918494558,0.27842,3589.0,3588.8,1.72415147]
[1732918494869,0.71191,3589.1,3588.9,0.27842]
[1732918495260,0.4335,3589.1,3588.9,0.27842]
[1732918495464,0.71191,3589.1,3588.9,0.27842]
[1732918495755,0.27842,3589.0,3588.9,0.27842]
[1732918495956,0.4335,3589.1,3588.9,0.27842]
[1732918496268,0.71191,3589.1,3588.9,0.27842]
[1732918497165,0.27841,3589.1,3588.9,0.27842]
[1732918506576,0.8753,3589.3,3588.8,4.65352147]
[1732918506770,0.2784,3589.2,3589.1,0.2784]
[1732918506973,0.27839,3589.4,3589.1,1.02482147]
[1732918507273,0.6959,3589.8,3589.1,1.02482147]
[1732918507274,0.27838,3589.5,3589.3,0.27839]
[1732918507473,0.27837,3589.6,3589.4,0.27838]
[1732918507669,0.27837,3589.6,3589.5,0.27838]
[1732918508273,0.27837,3589.6,3589.4,0.27838]
[1732918508479,0.70416,3589.7,3589.5,1.02482147]
[1732918508773,0.4258,3589.7,3589.5,1.30319147]
[1732918508983,0.4258,3589.7,3589.6,0.4117]
[1732918509176,0.4258,3589.7,3589.6,0.69007]
[1732918510178,3.2078,3590.0,3589.6,0.4117]
[1732918510374,1.16214,3590.1,3589.9,0.27834]
[1732918510579,0.8838,3590.1,3590.0,1.02482147]
[1732918510779,0.4455,3590.1,3590.0,4.51096147]
[1732918512282,0.4455,3590.1,3590.0,4.23262147]
[1732918512581,0.4455,3590.1,3590.0,3.48614]
[1732918512879,0.4299,3590.6,3590.0,4.23262147]
[1732918513082,0.7182,3590.5,3590.2,1.30314147]
[1732918513482,0.7182,3590.5,3590.2,1.02482147]
[1732918513783,0.7182,3590.5,3590.3,0.27831]
[1732918514180,0.4399,3590.5,3590.4,1.02482147]
[1732918514783,0.7182,3590.5,3590.4,1.02482147]
[1732918517286,0.4399,3590.5,3590.4,1.02482147]
[1732918517481,0.4399,3590.5,3590.4,1.30313147]
[1732918517687,0.7182,3590.5,3590.4,1.02482147]
[1732918518687,0.4399,3590.5,3590.1,0.8579]
[1732918518991,0.4399,3590.5,3590.4,4.23262147]
[1732918519291,0.4399,3590.5,3590.4,4.51093147]
[1732918519687,0.4299,3590.6,3590.5,0.2783]
[1732918519991,0.27828,3590.8,3590.5,0.2783]
[1732918520287,0.27827,3590.9,3590.7,1.02482147]
[1732918520484,0.27828,3590.8,3590.7,1.02482147]
[1732918521591,0.27827,3590.9,3590.7,1.02482147]
[1732918522290,1.55986,3591.1,3590.9,0.27826]
[1732918522494,1.55986,3591.1,3590.6,0.4255]
[1732918522495,1.55986,3591.1,3591.0,1.02482147]
[1732918527590,1.2816,3591.1,3590.8,0.4202]
[1732918527787,0.27827,3590.9,3590.8,1.44502147]
[1732918528092,0.27826,3591.0,3590.8,1.72329147]
[1732918529096,0.27827,3590.9,3590.8,1.44502147]
[1732918529592,0.27827,3590.9,3590.8,1.72330147]
[1732918529793,0.27827,3590.9,3590.8,1.44502147]
[1732918530691,0.27827,3590.9,3590.8,1.72330147]
[1732918531088,0.27827,3590.9,3590.8,1.44502147]
[1732918531502,0.27827,3590.9,3590.8,0.4202]
[1732918531691,0.27827,3590.9,3590.8,1.44502147]
[1732918532294,1.2816,3591.1,3590.7,3.2078]
[1732918532495,0.27828,3590.8,3590.7,3.2078]
[1732918532990,0.27831,3590.4,3590.3,3.48611]
[1732918533385,0.27831,3590.4,3590.3,3.2078]
[1732918533994,0.27831,3590.4,3590.3,3.48611]
[1732918534395,0.27831,3590.4,3590.3,3.2078]
[1732918536889,5.10342147,3590.5,3589.8,1.02482147]
[1732918537086,0.27835,3589.9,3589.8,1.02482147]
[1732918538001,0.27835,3589.9,3589.4,0.718]
[1732918538002,0.4133,3590.1,3589.4,0.718]
[1732918538295,0.27838,3589.6,3589.4,0.718]
[1732918539595,0.27838,3589.6,3589.5,1.02482147]
[1732918542902,0.8834,3589.8,3589.3,3.2078]
[1732918543101,0.27838,3589.5,3589.3,3.2078]
[1732918544596,0.27837,3589.7,3589.4,1.02482147]
[1732918544796,0.27837,3589.7,3589.6,1.02482147]
[1732918546702,0.4133,3590.1,3589.6,1.02482147]
[1732918546902,0.27835,3589.8,3589.7,1.2838]
[1732918547103,0.27835,3589.9,3589.7,1.2838]
[1732918547901,0.27835,3589.8,3589.7,1.2838]
[1732918548597,0.4076,3590.4,3589.7,2.30862147]
[1732918548802,0.4076,3590.4,3590.3,1.02482147]
[1732918548803,0.27831,3590.4,3590.3,1.02482147]
[1732918549306,0.27829,3590.6,3590.4,0.2783]
[1732918549602,0.27829,3590.6,3590.5,1.90752147]
[1732918553397,0.27829,3590.6,3590.5,0.8827]
[1732918553908,0.27829,3590.6,3590.5,1.90752147]
[1732918554402,0.27829,3590.6,3590.5,2.18582147]
[1732918554610,0.27829,3590.6,3590.5,1.90752147]
[1732918555303,0.27829,3590.6,3590.5,2.18582147]
[1732918556109,0.27829,3590.7,3590.6,0.27829]
[1732918556407,0.27829,3590.7,3590.6,1.30311147]
[1732918556704,0.27829,3590.7,3590.6,1.02482147]
[1732918563206,0.4272,3590.9,3590.5,0.8827]
[1732918563508,0.27829,3590.7,3590.6,0.27829]
[1732918563702,0.4272,3590.9,3590.6,0.27829]
[1732918563907,1.11014,3591.1,3590.6,0.27829]
[1732918563908,0.4145,3591.1,3590.6,0.27829]
[1732918564103,0.27828,3590.8,3590.6,0.27829]
[1732918564706,0.4145,3591.1,3590.7,3.2078]
[1732918564907,0.27825,3591.1,3591.0,1.02482147]
[1732918565112,0.27825,3591.1,3591.0,1.30308147]
[1732918565314,0.27825,3591.1,3591.0,1.02482147]
[1732918565811,0.416,3591.4,3591.0,1.87672147]
[1732918566006,0.27825,3591.2,3591.1,0.449]
[1732918567711,0.27824,3591.3,3591.1,1.47382147]
[1732918567912,4.0894,3591.5,3591.1,1.47382147]
[1732918567913,0.27824,3591.2,3591.1,1.47382147]
[1732918568414,0.27824,3591.2,3591.1,4.95987147]
[1732918568615,0.27824,3591.2,3591.1,4.68162147]
[1732918569424,0.27824,3591.3,3591.1,4.68162147]
[1732918569610,0.27824,3591.3,3591.1,4.95987147]
[1732918570214,0.4496,3591.5,3591.1,4.68162147]
[1732918570416,0.4496,3591.5,3591.4,1.02482147]
[1732918570612,0.72782,3591.5,3591.4,1.02482147]
[1732918570912,0.4281,3591.7,3591.4,2.04964294]
[1732918571116,0.4283,3591.9,3591.6,1.30303147]
[1732918571323,0.70649,3591.9,3591.8,1.02482147]
[1732918571617,0.2782,3591.8,3591.6,1.44171]
[1732918572018,0.27819,3592.0,3591.8,0.27819]
[1732918572207,0.8464,3592.1,3591.9,1.02482147]
[1732918572515,0.27818,3592.0,3591.9,1.02482147]
[1732918573117,0.27818,3592.0,3591.9,4.23262147]
[1732918575517,0.8464,3592.1,3591.9,4.51081147]
[1732918575818,3.90314,3592.7,3592.0,0.27818]
[1732918576013,1.57524,3592.6,3592.5,1.02482147]
[1732918578214,0.27815,3592.4,3592.3,1.02482147]
[1732918580715,0.27815,3592.4,3592.3,1.30298147]
[1732918581219,0.27815,3592.4,3592.3,1.02482147]
[1732918591819,0.27815,3592.5,3592.3,4.51077147]
[1732918592017,0.27815,3592.5,3592.4,1.13475]
[1732918592224,0.27813,3592.7,3592.5,0.27814]
[1732918592417,0.27813,3592.7,3592.6,2.32778294]
[1732918592618,0.27812,3592.8,3592.6,2.04964294]
[1732918593519,0.444,3593.0,3592.7,3.2078]
[1732918593833,0.7268,3593.1,3593.0,0.27811]
[1732918594127,0.8521,3593.4,3592.9,1.02482147]
[1732918594329,1.56077,3593.4,3593.3,1.02482147]
[1732918597327,1.11827,3593.4,3593.3,1.30290147]
[1732918597625,0.8402,3593.4,3593.3,1.30290147]
[1732918597832,0.27807,3593.5,3593.4,0.27807]
[1732918598027,0.27806,3593.6,3593.5,0.4118]
[1732918598225,0.27806,3593.6,3593.5,4.64442147]
[1732918602835,0.27806,3593.6,3593.5,4.92249147]
[1732918603028,0.8263,3593.8,3593.5,4.92249147]
[1732918603222,1.10434,3593.8,3593.7,1.02482147]
[1732918604332,1.10434,3593.8,3593.7,1.01773071]
[1732918606231,0.27806,3593.6,3593.5,3.6196]
[1732918606432,0.27806,3593.6,3593.5,4.64442147]
[1732918607338,0.27806,3593.6,3593.5,4.92249147]
[1732918608639,0.27805,3593.7,3593.6,0.27806]
[1732918608831,0.27805,3593.7,3593.6,1.30288147]
[1732918609039,0.27805,3593.8,3593.6,1.30288147]
[1732918609234,0.27805,3593.8,3593.7,0.8414]
[1732918610939,0.27804,3593.9,3593.7,1.86622147]
[1732918611428,0.27804,3593.8,3593.7,1.86622147]
[1732918611837,0.27804,3593.8,3593.7,2.14427147]
[1732918612543,0.27804,3593.8,3593.7,1.86622147]
[1732918612838,0.27804,3593.8,3593.7,0.8414]
[1732918614342,0.27804,3593.8,3593.7,1.11945]
[1732918615643,0.27804,3593.8,3593.7,0.8414]
[1732918616937,0.27804,3593.8,3593.7,1.11945]
[1732918617944,0.27804,3593.8,3593.7,0.8414]
[1732918619046,0.27804,3593.8,3593.7,1.11945]
[1732918620046,0.27804,3593.8,3593.7,0.8414]
[1732918621743,0.69502,3594.3,3594.2,0.27801]
[1732918621744,0.27801,3594.3,3594.2,0.27801]
[1732918621943,0.27801,3594.3,3594.2,1.74482147]
[1732918622141,1.12125,3594.7,3594.2,1.74482147]
[1732918622443,0.70427,3594.7,3594.6,1.02482147]
[1732918623548,3.2078,3595.0,3594.6,1.02482147]
[1732918623743,41.745,3604.1,3595.9,0.27788]
[1732918623744,0.27786,3596.2,3595.9,0.27788]
[1732918623940,0.69453,3596.9,3595.9,0.27788]
[1732918623941,1.11953,3596.9,3596.1,1.02482147]
[1732918624144,0.425,3596.9,3596.4,5.31773005]
[1732918624452,0.27783,3596.5,3596.4,3.2078]
[1732918630748,3.2078,3597.2,3596.4,3.2078]
[1732918630749,3.2078,3599.2,3596.4,27.03902841]
[1732918631055,0.27766,3598.7,3598.6,2.10993005]
[1732918631248,0.27766,3598.7,3598.5,3.2078]
[1732918631453,0.27769,3598.4,3598.3,0.717]
[1732918632158,0.6941,3599.1,3598.2,2.10993005]
[1732918632159,0.2777,3598.3,3598.2,2.10993005]
[1732918632457,0.6941,3599.1,3598.2,2.10993005]
[1732918632756,8.2078,3599.1,3598.1,3.2078]
[1732918632953,0.2777,3598.2,3598.1,3.2078]
[1732918637557,0.4503,3598.5,3597.5,2.10993005]
[1732918637756,0.27775,3597.6,3597.5,2.10993005]
[1732918640553,0.27776,3597.5,3597.4,3.2078]
[1732918643259,0.69432,3597.9,3597.0,3.2078]
[1732918643260,0.27779,3597.1,3597.0,3.2078]
[1732918649361,0.27779,3597.1,3597.0,5.31773005]
[1732918653268,0.27779,3597.1,3597.0,5.98232355]
[1732918653671,0.27779,3597.1,3597.0,5.63483921]
[1732918654575,0.27779,3597.1,3597.0,3.52490916]
[1732918654779,0.27783,3596.6,3596.4,3.2078]
[1732918654977,0.27783,3596.5,3596.4,3.2078]
[1732918655271,0.27783,3596.5,3596.4,3.52383827]
[1732918657770,0.27783,3596.5,3596.4,3.2078]
[1732918658880,0.27783,3596.5,3596.4,2.46173]
[1732918659174,0.2779,3595.7,3595.5,3.2078]
[1732918659472,0.69461,3596.4,3595.6,0.31626861]
[1732918659473,0.27789,3595.9,3595.6,0.31626861]
[1732918659676,0.27786,3596.2,3596.1,2.10993005]
[1732918659867,0.27786,3596.2,3596.1,5.31773005]
[1732918669971,0.27786,3596.2,3596.1,3.2078]
[1732918672080,0.27786,3596.2,3596.1,3.6484]
[1732918677085,0.27784,3596.6,3596.1,5.75833005]
[1732918677386,4.31752,3596.9,3596.5,3.2078]
[1732918677387,0.4152,3596.9,3596.5,3.2078]
[1732918677578,0.4152,3596.9,3596.6,0.4474]
[1732918677579,0.27782,3596.7,3596.6,0.4474]
[1732918678179,0.27782,3596.7,3596.6,1.46762697]
[1732918680193,0.27782,3596.7,3596.6,0.4474]
[1732918683191,1.38862,3598.0,3596.6,0.4474]
[1732918683386,0.2778,3597.1,3597.0,5.31779025]
[1732918683584,0.2778,3597.1,3597.0,5.59559025]
[1732918685885,0.2778,3597.1,3597.0,5.31779025]
[1732918686083,0.2778,3597.1,3597.0,5.59559025]
[1732918687890,0.2778,3597.1,3597.0,5.31779025]
[1732918690487,0.2778,3597.1,3597.0,3.2078]
[1732918690888,0.2778,3597.1,3596.6,2.55739025]
[1732918690889,0.27782,3596.7,3596.6,5.76519025]
[1732918691196,1.11011,3597.0,3596.6,5.76519025]
[1732918691694,1.11011,3597.0,3596.6,5.31779025]
[1732918691891,0.27782,3596.7,3596.6,5.31779025]
[1732918692396,0.27782,3596.7,3596.6,5.59562025]
[1732918692890,0.27782,3596.7,3596.6,5.31779025]
[1732918693091,0.27782,3596.7,3596.6,5.59562025]
[1732918693294,0.4244,3597.2,3596.9,0.2778]
[1732918693485,0.4244,3597.2,3596.6,5.31779025]
[1732918693690,0.27778,3597.2,3597.1,3.2078]
[1732918694092,0.27778,3597.2,3597.1,4.0764]
[1732918695398,0.27778,3597.2,3597.1,4.35419]
[1732918695696,0.27777,3597.4,3597.1,6.18639025]
[1732918696001,0.27778,3597.3,3597.2,0.27778]
[1732918696793,3.2078,3598.2,3597.1,6.18639025]
[1732918696990,0.27776,3597.6,3597.5,0.27775]
[1732918697392,0.27777,3597.5,3597.4,0.27776]
[1732918699199,0.27777,3597.5,3597.4,3.48556]
[1732918699694,0.27777,3597.5,3597.4,3.2078]
[1732918700599,0.27777,3597.5,3597.4,3.48557]
[1732918700799,0.27777,3597.5,3597.4,5.59556025]
[1732918701803,0.69432,3598.0,3597.4,5.59556025]
[1732918702099,0.27773,3598.0,3597.9,0.27772]
[1732918702296,0.27773,3598.0,3597.9,0.27773]
[1732918702503,0.27773,3598.0,3597.9,0.8405]
[1732918703598,0.27773,3598.0,3597.9,1.11823]
[1732918704193,0.27773,3598.0,3597.9,0.8405]
[1732918704700,0.27773,3598.0,3597.9,1.11823]
[1732918705302,0.27773,3598.0,3597.9,0.8405]
[1732918707506,0.27773,3598.0,3597.9,1.11823]
[1732918708403,0.27773,3598.0,3597.9,0.8405]
[1732918708610,0.69424,3598.4,3597.9,0.8405]
[1732918708800,0.27769,3598.4,3598.3,3.2078]
[1732918711020,0.2777,3598.3,3598.2,2.10999025]
[1732918711200,0.2777,3598.3,3598.2,5.31779025]
[1732918714207,0.2777,3598.3,3598.2,4.22717752]
[1732918719498,0.2777,3598.3,3598.2,1.01937752]
[1732918721496,0.27771,3598.1,3598.0,3.2078]
[1732918721705,1.38858,3598.1,3597.6,3.2078]
[1732918721903,1.38858,3598.1,3597.7,1.01937752]
[1732918721904,0.27773,3597.8,3597.7,1.01937752]
[1732918727805,1.53472,3598.0,3597.6,3.2078]
[1732918728005,0.68824,3597.7,3597.6,3.2078]
[1732918732804,0.27776,3597.5,3597.4,40.8]
[1732918733003,0.27777,3597.4,3597.3,1.01937752]
[1732918733405,0.27777,3597.4,3597.3,41.81937752]
[1732918735310,0.27777,3597.4,3597.3,1.01937752]
[1732918735912,0.27777,3597.3,3597.2,44.70686308]
[1732918736108,0.27777,3597.3,3597.2,45.7262406]
[1732918736309,0.27777,3597.3,3597.2,4.9262406]
[1732918736503,0.27777,3597.3,3597.2,4.64827752]
[1732918737310,0.27777,3597.3,3597.2,4.22717752]
[1732918738706,0.2778,3597.0,3596.9,0.4423]